[Event "Titled Tuesday Blitz January 04 2022"]
[White "Fernandez Reyes, Lisandro"]
[Black "Perez Gormaz, Matias"]
[WhiteFideId "3504190"]
[BlackFideId "3406342"]
[WhiteElo "2374"]
[BlackElo "2352"]
[Result "1-0"]
[Round "09"]
[TimeControl "180+1"]
[Date "2022.01.04"]
[WhiteClock "0:00:17"]
[BlackClock "0:00:03"]

1. e4 {[%clk 0:03:00]}  c5 {[%clk 0:03:00]} 2. Nf3 {[%clk 0:03:00]}  d6 {[%clk 0:03:00]} 3. d4 {[%clk 0:03:00]}  cxd4 {[%clk 0:03:01]} 4. Nxd4 {[%clk 0:03:00]}  Nf6 {[%clk 0:03:02]} 5. Nc3 {[%clk 0:03:00]}  a6 {[%clk 0:03:03]} 6. Bc4 {[%clk 0:02:59]}  e6 {[%clk 0:03:03]} 7. Bb3 {[%clk 0:02:59]}  b5 {[%clk 0:03:03]} 8. a3 {[%clk 0:02:53]}  Be7 {[%clk 0:03:04]} 9. g4 {[%clk 0:02:52]}  h6 {[%clk 0:02:55]} 10. Qe2 {[%clk 0:02:50]}  Qb6 {[%clk 0:02:50]} 11. Be3 {[%clk 0:02:48]}  Qb7 {[%clk 0:02:50]} 12. f3 {[%clk 0:02:48]}  Nbd7 {[%clk 0:02:50]} 13. h4 {[%clk 0:02:45]}  Nc5 {[%clk 0:02:49]} 14. Rg1 {[%clk 0:02:44]}  Nfd7 {[%clk 0:02:43]} 15. g5 {[%clk 0:02:42]}  hxg5 {[%clk 0:02:42]} 16. hxg5 {[%clk 0:02:43]}  g6 {[%clk 0:02:40]} 17. O-O-O {[%clk 0:02:40]}  Nb6 {[%clk 0:02:25]} 18. Ba2 {[%clk 0:02:38]}  Bd7 {[%clk 0:02:24]} 19. Rh1 {[%clk 0:02:29]}  Rf8 {[%clk 0:02:23]} 20. Kb1 {[%clk 0:02:21]}  Rb8 {[%clk 0:02:23]} 21. Nb3 {[%clk 0:02:20]}  Nca4 {[%clk 0:02:18]} 22. Bd2 {[%clk 0:02:02]}  Nc4 {[%clk 0:01:16]} 23. Bc1 {[%clk 0:02:00]}  Nxa3+ {[%clk 0:01:14]} 24. Ka1 {[%clk 0:01:56]}  Nxc3 {[%clk 0:01:13]} 25. bxc3 {[%clk 0:01:52]}  Nc4 {[%clk 0:01:14]} 26. f4 {[%clk 0:01:50]}  Qc7 {[%clk 0:00:56]} 27. Rhe1 {[%clk 0:01:43]}  Rc8 {[%clk 0:00:52]} 28. f5 {[%clk 0:01:38]}  Ne5 {[%clk 0:00:52]} 29. Bb2 {[%clk 0:01:16]}  Qc4 {[%clk 0:00:48]} 30. f6 {[%clk 0:01:13]}  Qxe2 {[%clk 0:00:45]} 31. Rxe2 {[%clk 0:01:12]}  Bd8 {[%clk 0:00:46]} 32. Rxd6 {[%clk 0:01:12]}  a5 {[%clk 0:00:33]} 33. Nd4 {[%clk 0:01:08]}  Rh8 {[%clk 0:00:24]} 34. Ra6 {[%clk 0:01:08]}  Rh1+ {[%clk 0:00:21]} 35. Bb1 {[%clk 0:01:07]}  Rg1 {[%clk 0:00:19]} 36. Rh2 {[%clk 0:00:55]}  Bc6 {[%clk 0:00:12]} 37. Nxb5 {[%clk 0:00:43]}  Bxb5 {[%clk 0:00:03]} 38. Rd6 {[%clk 0:00:42]}  Be7 {[%clk 0:00:02]} 39. fxe7 {[%clk 0:00:40]}  Kxe7 {[%clk 0:00:03]} 40. Ba3 {[%clk 0:00:40]}  Nc4 {[%clk 0:00:03]} 41. Rd1+ {[%clk 0:00:36]}  Nxa3 {[%clk 0:00:02]} 42. Rxg1 {[%clk 0:00:36]}  Nc4 {[%clk 0:00:03]} 43. Rh7 {[%clk 0:00:35]}  Ne5 {[%clk 0:00:03]} 44. Kb2 {[%clk 0:00:35]}  Nc4+ {[%clk 0:00:03]} 45. Kc1 {[%clk 0:00:35]}  Ne5 {[%clk 0:00:04]} 46. Rg3 {[%clk 0:00:32]}  Bc6 {[%clk 0:00:03]} 47. Re3 {[%clk 0:00:31]}  a4 {[%clk 0:00:04]} 48. Ba2 {[%clk 0:00:30]}  Rb8 {[%clk 0:00:03]} 49. Rh1 {[%clk 0:00:28]}  Rc8 {[%clk 0:00:03]} 50. Rd1 {[%clk 0:00:28]}  Bb7 {[%clk 0:00:04]} 51. Rd4 {[%clk 0:00:28]}  Bc6 {[%clk 0:00:03]} 52. Rb4 {[%clk 0:00:27]}  Rh8 {[%clk 0:00:03]} 53. Kb2 {[%clk 0:00:27]}  Rh5 {[%clk 0:00:03]} 54. Rg3 {[%clk 0:00:26]}  Rh2 {[%clk 0:00:03]} 55. Rb6 {[%clk 0:00:22]}  Kd6 {[%clk 0:00:02]} 56. Ra6 {[%clk 0:00:22]}  Kc5 {[%clk 0:00:02]} 57. Ra5+ {[%clk 0:00:22]}  Kd6 {[%clk 0:00:03]} 58. c4 {[%clk 0:00:21]}  Bxe4 {[%clk 0:00:03]} 59. c5+ {[%clk 0:00:20]}  Ke7 {[%clk 0:00:02]} 60. Rc3 {[%clk 0:00:20]}  Nd3+ {[%clk 0:00:01]} 61. Ka3 {[%clk 0:00:20]}  Ne5 {[%clk 0:00:01]} 62. Ra7+ {[%clk 0:00:20]}  Kf8 {[%clk 0:00:01]} 63. Rxa4 {[%clk 0:00:18]}  Nc6 {[%clk 0:00:02]} 64. Rxe4 {[%clk 0:00:18]}  Ke7 {[%clk 0:00:02]} 65. Ra4 {[%clk 0:00:18]}  Rh8 {[%clk 0:00:02]} 66. Ra6 {[%clk 0:00:18]}  Kd7 {[%clk 0:00:02]} 67. Bb3 {[%clk 0:00:17]}  Kc7 {[%clk 0:00:02]} 68. Ba4 {[%clk 0:00:18]}  Nd4 {[%clk 0:00:03]} 69. Rd3 {[%clk 0:00:18]}  e5 {[%clk 0:00:03]} 70. c3 {[%clk 0:00:17]}  Ne6 {[%clk 0:00:02]} 71. Rd7+ {[%clk 0:00:17]}  Kb8 {[%clk 0:00:03]} 72. Rb6+ {[%clk 0:00:17]}  Ka8 {[%clk 0:00:03]} 73. Bc6# {[%clk 0:00:17]} 1-0


[Site "https://www.chess.com"]

[Event "Titled Tuesday Blitz January 04 2022"]
[White "Hakobyan, Aram"]
[Black "Efimenko, Zahar"]
[WhiteFideId "13306677"]
[BlackFideId "14107201"]
[WhiteElo "2557"]
[BlackElo "2528"]
[Result "1-0"]
[Round "09"]
[TimeControl "180+1"]
[Date "2022.01.04"]
[WhiteClock "0:00:05"]
[BlackClock "0:00:01"]

1. d4 {[%clk 0:03:00]}  d6 {[%clk 0:02:59]} 2. Nf3 {[%clk 0:02:59]}  g6 {[%clk 0:02:58]} 3. e4 {[%clk 0:02:58]}  Nf6 {[%clk 0:02:56]} 4. Nc3 {[%clk 0:02:58]}  Bg7 {[%clk 0:02:55]} 5. Be2 {[%clk 0:02:58]}  O-O {[%clk 0:02:55]} 6. Bf4 {[%clk 0:02:59]}  Bg4 {[%clk 0:02:53]} 7. O-O {[%clk 0:02:58]}  Nc6 {[%clk 0:02:37]} 8. d5 {[%clk 0:02:58]}  Bxf3 {[%clk 0:02:36]} 9. Bxf3 {[%clk 0:02:59]}  Ne5 {[%clk 0:02:36]} 10. Be2 {[%clk 0:02:54]}  c6 {[%clk 0:02:28]} 11. Bxe5 {[%clk 0:02:17]}  dxe5 {[%clk 0:02:28]} 12. dxc6 {[%clk 0:02:18]}  bxc6 {[%clk 0:02:27]} 13. Qxd8 {[%clk 0:02:16]}  Rfxd8 {[%clk 0:02:26]} 14. Rfd1 {[%clk 0:02:16]}  Rd4 {[%clk 0:02:25]} 15. Bd3 {[%clk 0:02:10]}  Ne8 {[%clk 0:02:20]} 16. Ne2 {[%clk 0:02:03]}  Rdd8 {[%clk 0:02:18]} 17. Ba6 {[%clk 0:01:55]}  Nd6 {[%clk 0:02:16]} 18. f3 {[%clk 0:01:53]}  Rab8 {[%clk 0:02:16]} 19. b3 {[%clk 0:01:51]}  f5 {[%clk 0:02:14]} 20. Nc3 {[%clk 0:01:43]}  Kf7 {[%clk 0:02:14]} 21. Rd3 {[%clk 0:01:35]}  e6 {[%clk 0:01:50]} 22. Rad1 {[%clk 0:01:28]}  Ke7 {[%clk 0:01:49]} 23. Kf2 {[%clk 0:01:09]}  Bh6 {[%clk 0:01:48]} 24. Ke2 {[%clk 0:01:07]}  Bg5 {[%clk 0:01:42]} 25. Bc4 {[%clk 0:00:44]}  h5 {[%clk 0:01:37]} 26. Na4 {[%clk 0:00:31]}  fxe4 {[%clk 0:01:33]} 27. fxe4 {[%clk 0:00:32]}  Nxe4 {[%clk 0:01:23]} 28. Rxd8 {[%clk 0:00:31]}  Rxd8 {[%clk 0:01:22]} 29. Rxd8 {[%clk 0:00:25]}  Kxd8 {[%clk 0:01:21]} 30. Bd3 {[%clk 0:00:26]}  Nd6 {[%clk 0:01:04]} 31. Nc5 {[%clk 0:00:25]}  Ke7 {[%clk 0:00:53]} 32. Bxg6 {[%clk 0:00:26]}  h4 {[%clk 0:00:52]} 33. Be4 {[%clk 0:00:24]}  Bf4 {[%clk 0:00:46]} 34. h3 {[%clk 0:00:22]}  Nb5 {[%clk 0:00:45]} 35. Kd3 {[%clk 0:00:12]}  Kd6 {[%clk 0:00:44]} 36. b4 {[%clk 0:00:11]}  Bg3 {[%clk 0:00:38]} 37. Nb7+ {[%clk 0:00:11]}  Kc7 {[%clk 0:00:29]} 38. Na5 {[%clk 0:00:12]}  Nd6 {[%clk 0:00:20]} 39. Bxc6 {[%clk 0:00:07]}  Be1 {[%clk 0:00:19]} 40. a3 {[%clk 0:00:07]}  Bf2 {[%clk 0:00:14]} 41. Be4 {[%clk 0:00:07]}  Bb6 {[%clk 0:00:13]} 42. Nc4 {[%clk 0:00:08]}  Nxc4 {[%clk 0:00:09]} 43. Kxc4 {[%clk 0:00:09]}  Bd4 {[%clk 0:00:09]} 44. Kb5 {[%clk 0:00:08]}  Be3 {[%clk 0:00:08]} 45. c4 {[%clk 0:00:08]}  Bc1 {[%clk 0:00:08]} 46. a4 {[%clk 0:00:07]}  Bd2 {[%clk 0:00:08]} 47. c5 {[%clk 0:00:07]}  Be1 {[%clk 0:00:05]} 48. Kc4 {[%clk 0:00:08]}  Bd2 {[%clk 0:00:04]} 49. Bf3 {[%clk 0:00:06]}  Be3 {[%clk 0:00:03]} 50. Kb5 {[%clk 0:00:05]}  Bd2 {[%clk 0:00:03]} 51. Be4 {[%clk 0:00:05]}  Be1 {[%clk 0:00:03]} 52. Bd3 {[%clk 0:00:05]}  Bd2 {[%clk 0:00:03]} 53. Kc4 {[%clk 0:00:06]}  Be1 {[%clk 0:00:03]} 54. b5 {[%clk 0:00:07]}  Bf2 {[%clk 0:00:03]} 55. Be4 {[%clk 0:00:07]}  Be1 {[%clk 0:00:03]} 56. Bf3 {[%clk 0:00:07]}  Bd2 {[%clk 0:00:02]} 57. Kd3 {[%clk 0:00:06]}  Be1 {[%clk 0:00:02]} 58. Ke4 {[%clk 0:00:07]}  Bg3 {[%clk 0:00:02]} 59. c6 {[%clk 0:00:06]}  Kd6 {[%clk 0:00:02]} 60. Bg4 {[%clk 0:00:07]}  Bf2 {[%clk 0:00:02]} 61. Kd3 {[%clk 0:00:04]}  Bb6 {[%clk 0:00:02]} 62. g3 {[%clk 0:00:04]}  hxg3 {[%clk 0:00:01]} 63. Bf3 {[%clk 0:00:05]}  e4+ {[%clk 0:00:01]} 64. Kxe4 {[%clk 0:00:05]} 1-0


[Site "https://www.chess.com"]

[Event "Titled Tuesday Blitz January 04 2022"]
[White "Hasangatin, Ramil"]
[Black "Moroni, Luca Jr"]
[WhiteFideId "4122160"]
[BlackFideId "865834"]
[WhiteElo "2375"]
[BlackElo "2573"]
[Result "1-0"]
[Round "09"]
[TimeControl "180+1"]
[Date "2022.01.04"]
[WhiteClock "0:00:07"]
[BlackClock "0:00:06"]

1. e4 {[%clk 0:02:58]}  g6 {[%clk 0:02:45]} 2. d4 {[%clk 0:02:57]}  Bg7 {[%clk 0:02:46]} 3. Nc3 {[%clk 0:02:57]}  d6 {[%clk 0:02:46]} 4. Nf3 {[%clk 0:02:58]}  Nf6 {[%clk 0:02:47]} 5. h3 {[%clk 0:02:58]}  O-O {[%clk 0:02:47]} 6. Be3 {[%clk 0:02:58]}  d5 {[%clk 0:02:44]} 7. e5 {[%clk 0:02:54]}  Ne4 {[%clk 0:02:44]} 8. Bd3 {[%clk 0:02:51]}  Nxc3 {[%clk 0:02:44]} 9. bxc3 {[%clk 0:02:52]}  c5 {[%clk 0:02:45]} 10. O-O {[%clk 0:02:44]}  Nc6 {[%clk 0:02:45]} 11. Re1 {[%clk 0:02:44]}  Qa5 {[%clk 0:02:38]} 12. Qd2 {[%clk 0:02:44]}  cxd4 {[%clk 0:02:37]} 13. cxd4 {[%clk 0:02:44]}  Qxd2 {[%clk 0:02:37]} 14. Bxd2 {[%clk 0:02:42]}  Be6 {[%clk 0:02:34]} 15. Rab1 {[%clk 0:02:38]}  b6 {[%clk 0:02:34]} 16. Ba6 {[%clk 0:02:20]}  Rab8 {[%clk 0:02:28]} 17. a4 {[%clk 0:02:16]}  Bf5 {[%clk 0:02:19]} 18. Bd3 {[%clk 0:02:06]}  Bxd3 {[%clk 0:02:17]} 19. cxd3 {[%clk 0:02:07]}  Rfc8 {[%clk 0:02:14]} 20. Rec1 {[%clk 0:02:04]}  e6 {[%clk 0:02:14]} 21. Rc2 {[%clk 0:01:55]}  Ne7 {[%clk 0:02:08]} 22. Rxc8+ {[%clk 0:01:47]}  Rxc8 {[%clk 0:02:09]} 23. a5 {[%clk 0:01:48]}  bxa5 {[%clk 0:02:06]} 24. Bxa5 {[%clk 0:01:41]}  Nc6 {[%clk 0:02:06]} 25. Rc1 {[%clk 0:01:30]}  Bf8 {[%clk 0:01:59]} 26. Kf1 {[%clk 0:01:18]}  Ne7 {[%clk 0:01:55]} 27. Ra1 {[%clk 0:01:12]}  Nc6 {[%clk 0:01:50]} 28. Rc1 {[%clk 0:01:11]}  Ba3 {[%clk 0:01:48]} 29. Rc2 {[%clk 0:01:06]}  h6 {[%clk 0:01:38]} 30. h4 {[%clk 0:01:04]}  Kg7 {[%clk 0:01:28]} 31. g4 {[%clk 0:01:03]}  h5 {[%clk 0:01:28]} 32. g5 {[%clk 0:00:59]}  Bf8 {[%clk 0:01:22]} 33. Ke2 {[%clk 0:00:55]}  Ne7 {[%clk 0:01:17]} 34. Ra2 {[%clk 0:00:44]}  Nf5 {[%clk 0:01:17]} 35. Bd2 {[%clk 0:00:41]}  Rc7 {[%clk 0:01:16]} 36. Kd1 {[%clk 0:00:33]}  Be7 {[%clk 0:01:10]} 37. Ra6 {[%clk 0:00:28]}  Kf8 {[%clk 0:01:06]} 38. Ba5 {[%clk 0:00:25]}  Rb7 {[%clk 0:01:01]} 39. Kc2 {[%clk 0:00:21]}  Ke8 {[%clk 0:00:59]} 40. Bc3 {[%clk 0:00:19]}  Kd7 {[%clk 0:00:59]} 41. Ba5 {[%clk 0:00:17]}  Ba3 {[%clk 0:00:40]} 42. Bc3 {[%clk 0:00:16]}  Bf8 {[%clk 0:00:41]} 43. Ba5 {[%clk 0:00:16]}  Be7 {[%clk 0:00:41]} 44. Bc3 {[%clk 0:00:16]}  Bd8 {[%clk 0:00:41]} 45. Bd2 {[%clk 0:00:13]}  Bb6 {[%clk 0:00:39]} 46. Bc3 {[%clk 0:00:12]}  Rc7 {[%clk 0:00:40]} 47. Kd2 {[%clk 0:00:12]}  Kc8 {[%clk 0:00:39]} 48. Ra2 {[%clk 0:00:12]}  Kb7 {[%clk 0:00:39]} 49. Ra4 {[%clk 0:00:11]}  Rc8 {[%clk 0:00:35]} 50. Ra2 {[%clk 0:00:11]}  a5 {[%clk 0:00:33]} 51. Ra3 {[%clk 0:00:07]}  Ra8 {[%clk 0:00:32]} 52. Ra4 {[%clk 0:00:06]}  Kc6 {[%clk 0:00:31]} 53. Kc2 {[%clk 0:00:06]}  Kb5 {[%clk 0:00:31]} 54. Kb3 {[%clk 0:00:06]}  Rc8 {[%clk 0:00:30]} 55. Ra1 {[%clk 0:00:06]}  a4+ {[%clk 0:00:30]} 56. Kb2 {[%clk 0:00:07]}  Bd8 {[%clk 0:00:21]} 57. Rb1 {[%clk 0:00:06]}  Ka6 {[%clk 0:00:17]} 58. Ra1 {[%clk 0:00:06]}  Kb5 {[%clk 0:00:15]} 59. Rb1 {[%clk 0:00:07]}  Be7 {[%clk 0:00:16]} 60. Kc2+ {[%clk 0:00:06]}  Ka6 {[%clk 0:00:15]} 61. Ra1 {[%clk 0:00:06]}  a3 {[%clk 0:00:14]} 62. Kb3 {[%clk 0:00:06]}  Kb5 {[%clk 0:00:14]} 63. Rb1 {[%clk 0:00:04]}  Ka6 {[%clk 0:00:13]} 64. Ra1 {[%clk 0:00:05]}  Rb8+ {[%clk 0:00:14]} 65. Kc2 {[%clk 0:00:05]}  Kb5 {[%clk 0:00:10]} 66. Rb1+ {[%clk 0:00:04]}  Ka6 {[%clk 0:00:05]} 67. Rxb8 {[%clk 0:00:05]}  a2 {[%clk 0:00:05]} 68. Ra8+ {[%clk 0:00:05]}  Kb7 {[%clk 0:00:04]} 69. Rxa2 {[%clk 0:00:06]}  Bd8 {[%clk 0:00:04]} 70. Rb2+ {[%clk 0:00:06]}  Kc6 {[%clk 0:00:04]} 71. Rb1 {[%clk 0:00:07]}  Kc7 {[%clk 0:00:04]} 72. Kd2 {[%clk 0:00:08]}  Kd7 {[%clk 0:00:05]} 73. Rb3 {[%clk 0:00:08]}  Ne7 {[%clk 0:00:05]} 74. Bb4 {[%clk 0:00:08]}  Nc6 {[%clk 0:00:05]} 75. Bc5 {[%clk 0:00:08]}  Ba5+ {[%clk 0:00:05]} 76. Ke3 {[%clk 0:00:07]}  Kc8 {[%clk 0:00:05]} 77. Ra3 {[%clk 0:00:07]}  Bc7 {[%clk 0:00:05]} 78. Ra1 {[%clk 0:00:08]}  Kb7 {[%clk 0:00:05]} 79. Rb1+ {[%clk 0:00:08]}  Ka6 {[%clk 0:00:05]} 80. Rc1 {[%clk 0:00:09]}  Na5 {[%clk 0:00:05]} 81. Bd6 {[%clk 0:00:08]}  Bb6 {[%clk 0:00:04]} 82. Rc8 {[%clk 0:00:08]}  Nb3 {[%clk 0:00:04]} 83. Bc5 {[%clk 0:00:08]}  Ba5 {[%clk 0:00:04]} 84. Rf8 {[%clk 0:00:07]}  Kb5 {[%clk 0:00:04]} 85. Rxf7 {[%clk 0:00:08]}  Ka4 {[%clk 0:00:04]} 86. Rf6 {[%clk 0:00:08]}  Na1 {[%clk 0:00:05]} 87. Rxg6 {[%clk 0:00:07]}  Nc2+ {[%clk 0:00:05]} 88. Kf4 {[%clk 0:00:08]}  Kb3 {[%clk 0:00:05]} 89. Rxe6 {[%clk 0:00:08]}  Kc3 {[%clk 0:00:06]} 90. g6 {[%clk 0:00:07]}  Kxd3 {[%clk 0:00:06]} 91. g7 {[%clk 0:00:07]} 1-0


[Site "https://www.chess.com"]

[Event "Titled Tuesday Blitz January 04 2022"]
[White "Jary, Sergey"]
[Black "Donchenko, Alexander"]
[WhiteFideId "14110350"]
[BlackFideId "24603295"]
[WhiteElo "2260"]
[BlackElo "2539"]
[Result "1-0"]
[Round "09"]
[TimeControl "180+1"]
[Date "2022.01.04"]
[WhiteClock "0:00:07"]
[BlackClock "0:00:59"]

1. e4 {[%clk 0:03:00]}  c5 {[%clk 0:02:59]} 2. Nf3 {[%clk 0:03:00]}  d6 {[%clk 0:03:00]} 3. d4 {[%clk 0:03:00]}  cxd4 {[%clk 0:03:01]} 4. Nxd4 {[%clk 0:03:01]}  Nf6 {[%clk 0:03:01]} 5. f3 {[%clk 0:03:01]}  e5 {[%clk 0:03:01]} 6. Bb5+ {[%clk 0:03:01]}  Nbd7 {[%clk 0:02:59]} 7. Nf5 {[%clk 0:03:00]}  a6 {[%clk 0:02:56]} 8. Bxd7+ {[%clk 0:02:59]}  Qxd7 {[%clk 0:02:56]} 9. Nc3 {[%clk 0:02:58]}  g6 {[%clk 0:02:54]} 10. Bg5 {[%clk 0:02:57]}  gxf5 {[%clk 0:02:51]} 11. Bxf6 {[%clk 0:02:56]}  Rg8 {[%clk 0:02:52]} 12. O-O {[%clk 0:02:52]}  Qc6 {[%clk 0:02:44]} 13. Nd5 {[%clk 0:02:37]}  Be6 {[%clk 0:02:43]} 14. c4 {[%clk 0:02:35]}  Rg6 {[%clk 0:02:39]} 15. Bh4 {[%clk 0:02:33]}  Bh6 {[%clk 0:02:33]} 16. Kh1 {[%clk 0:02:21]}  Qxc4 {[%clk 0:02:27]} 17. Nb6 {[%clk 0:02:13]}  Qc6 {[%clk 0:02:22]} 18. Nxa8 {[%clk 0:02:13]}  b5 {[%clk 0:02:23]} 19. Rc1 {[%clk 0:02:04]}  Bxc1 {[%clk 0:02:21]} 20. Qxc1 {[%clk 0:01:58]}  Qxa8 {[%clk 0:02:21]} 21. Qc7 {[%clk 0:01:54]}  Kf8 {[%clk 0:02:18]} 22. Qxd6+ {[%clk 0:01:52]}  Kg8 {[%clk 0:02:18]} 23. Qxe5 {[%clk 0:01:52]}  fxe4 {[%clk 0:02:16]} 24. fxe4 {[%clk 0:01:48]}  Rg4 {[%clk 0:02:13]} 25. Bf6 {[%clk 0:01:44]}  Qc8 {[%clk 0:02:07]} 26. h3 {[%clk 0:01:31]}  Rg6 {[%clk 0:02:05]} 27. Rd1 {[%clk 0:01:32]}  Bd7 {[%clk 0:01:59]} 28. Qe7 {[%clk 0:01:27]}  Be8 {[%clk 0:01:55]} 29. Kh2 {[%clk 0:01:03]}  Qc6 {[%clk 0:01:40]} 30. Rd8 {[%clk 0:00:50]}  Rxf6 {[%clk 0:01:32]} 31. Rxe8+ {[%clk 0:00:49]}  Kg7 {[%clk 0:01:32]} 32. Qf8+ {[%clk 0:00:48]}  Kg6 {[%clk 0:01:33]} 33. Qg8+ {[%clk 0:00:48]}  Kh6 {[%clk 0:01:33]} 34. Re5 {[%clk 0:00:36]}  Rg6 {[%clk 0:01:34]} 35. Qxf7 {[%clk 0:00:34]}  Qd6 {[%clk 0:01:27]} 36. Qf4+ {[%clk 0:00:33]}  Kg7 {[%clk 0:01:27]} 37. Rf5 {[%clk 0:00:28]}  Qe6 {[%clk 0:01:25]} 38. Qe5+ {[%clk 0:00:27]}  Qxe5+ {[%clk 0:01:24]} 39. Rxe5 {[%clk 0:00:27]}  Kf7 {[%clk 0:01:24]} 40. Rc5 {[%clk 0:00:27]}  Rd6 {[%clk 0:01:24]} 41. e5 {[%clk 0:00:23]}  Rd2 {[%clk 0:01:23]} 42. Rc7+ {[%clk 0:00:22]}  Kg8 {[%clk 0:01:23]} 43. e6 {[%clk 0:00:20]}  Re2 {[%clk 0:01:20]} 44. e7 {[%clk 0:00:17]}  Kf7 {[%clk 0:01:20]} 45. Ra7 {[%clk 0:00:17]}  Rxb2 {[%clk 0:01:20]} 46. a3 {[%clk 0:00:15]}  Rb3 {[%clk 0:01:09]} 47. Rxa6 {[%clk 0:00:14]}  Kxe7 {[%clk 0:01:09]} 48. Ra7+ {[%clk 0:00:14]}  Kf6 {[%clk 0:01:08]} 49. Rxh7 {[%clk 0:00:14]}  Rxa3 {[%clk 0:01:09]} 50. Rb7 {[%clk 0:00:15]}  Rb3 {[%clk 0:01:07]} 51. g4 {[%clk 0:00:15]}  b4 {[%clk 0:01:07]} 52. h4 {[%clk 0:00:15]}  Kg6 {[%clk 0:01:08]} 53. Rb6+ {[%clk 0:00:15]}  Kh7 {[%clk 0:01:08]} 54. h5 {[%clk 0:00:15]}  Kg7 {[%clk 0:01:03]} 55. g5 {[%clk 0:00:14]}  Rb1 {[%clk 0:01:03]} 56. Rb7+ {[%clk 0:00:14]}  Kf8 {[%clk 0:01:03]} 57. h6 {[%clk 0:00:13]}  Rb2+ {[%clk 0:01:00]} 58. Kg3 {[%clk 0:00:12]}  Rb1 {[%clk 0:01:00]} 59. Kg4 {[%clk 0:00:07]}  b3 {[%clk 0:00:59]} 60. Kh5 {[%clk 0:00:07]}  b2 {[%clk 0:00:58]} 61. Kg6 {[%clk 0:00:07]}  Re1 {[%clk 0:00:57]} 62. Rxb2 {[%clk 0:00:05]}  Re6+ {[%clk 0:00:57]} 63. Kf5 {[%clk 0:00:06]}  Ra6 {[%clk 0:00:56]} 64. Rb8+ {[%clk 0:00:06]}  Kf7 {[%clk 0:00:57]} 65. h7 {[%clk 0:00:06]}  Ra5+ {[%clk 0:00:56]} 66. Kg4 {[%clk 0:00:07]}  Ra4+ {[%clk 0:00:57]} 67. Kh5 {[%clk 0:00:07]}  Ra1 {[%clk 0:00:57]} 68. h8=Q {[%clk 0:00:07]}  Rh1+ {[%clk 0:00:58]} 69. Kg4 {[%clk 0:00:07]}  Rxh8 {[%clk 0:00:59]} 70. Rxh8 {[%clk 0:00:07]} 1-0


[Site "https://www.chess.com"]

[Event "Titled Tuesday Blitz January 04 2022"]
[White "Kobo, Ori"]
[Black "Bortnyk, Olexandr"]
[WhiteFideId "2812320"]
[BlackFideId "14120828"]
[WhiteElo "2420"]
[BlackElo "2723"]
[Result "1/2-1/2"]
[Round "09"]
[TimeControl "180+1"]
[Date "2022.01.04"]
[WhiteClock "0:00:06"]
[BlackClock "0:00:06"]

1. d4 {[%clk 0:03:00]}  d6 {[%clk 0:02:58]} 2. e4 {[%clk 0:03:01]}  Nf6 {[%clk 0:02:58]} 3. Nc3 {[%clk 0:03:01]}  Nbd7 {[%clk 0:02:56]} 4. Nge2 {[%clk 0:02:55]}  e5 {[%clk 0:02:54]} 5. h3 {[%clk 0:02:56]}  b5 {[%clk 0:02:49]} 6. a3 {[%clk 0:02:37]}  a5 {[%clk 0:02:41]} 7. g4 {[%clk 0:02:33]}  Bb7 {[%clk 0:02:40]} 8. Bg2 {[%clk 0:02:21]}  b4 {[%clk 0:02:20]} 9. Nd5 {[%clk 0:02:21]}  Be7 {[%clk 0:02:15]} 10. axb4 {[%clk 0:02:14]}  Nxd5 {[%clk 0:02:09]} 11. exd5 {[%clk 0:02:15]}  axb4 {[%clk 0:02:10]} 12. Rxa8 {[%clk 0:02:12]}  Qxa8 {[%clk 0:02:11]} 13. dxe5 {[%clk 0:02:04]}  Nxe5 {[%clk 0:02:11]} 14. O-O {[%clk 0:02:01]}  O-O {[%clk 0:02:08]} 15. Nd4 {[%clk 0:01:55]}  Bxd5 {[%clk 0:01:46]} 16. Bxd5 {[%clk 0:01:54]}  Qxd5 {[%clk 0:01:47]} 17. f4 {[%clk 0:01:55]}  Qc5 {[%clk 0:01:26]} 18. Kh2 {[%clk 0:01:23]}  Bf6 {[%clk 0:01:16]} 19. Nb3 {[%clk 0:01:09]}  Qc4 {[%clk 0:01:03]} 20. fxe5 {[%clk 0:01:08]}  Bxe5+ {[%clk 0:01:04]} 21. Kg2 {[%clk 0:01:05]}  f5 {[%clk 0:00:56]} 22. Qd3 {[%clk 0:00:36]}  Qc6+ {[%clk 0:00:54]} 23. Kg1 {[%clk 0:00:36]}  fxg4 {[%clk 0:00:50]} 24. Rxf8+ {[%clk 0:00:35]}  Kxf8 {[%clk 0:00:51]} 25. Qf5+ {[%clk 0:00:33]}  Kg8 {[%clk 0:00:40]} 26. Qc8+ {[%clk 0:00:32]}  Kf7 {[%clk 0:00:39]} 27. Qf5+ {[%clk 0:00:33]}  Kg8 {[%clk 0:00:34]} 28. hxg4 {[%clk 0:00:32]}  Qd5 {[%clk 0:00:29]} 29. Qc8+ {[%clk 0:00:30]}  Kf7 {[%clk 0:00:29]} 30. Qf5+ {[%clk 0:00:28]}  Kg8 {[%clk 0:00:30]} 31. Qd3 {[%clk 0:00:21]}  Qe6 {[%clk 0:00:24]} 32. Qf3 {[%clk 0:00:21]}  Qc4 {[%clk 0:00:20]} 33. Qa8+ {[%clk 0:00:18]}  Kf7 {[%clk 0:00:20]} 34. Qf3+ {[%clk 0:00:19]}  Kg8 {[%clk 0:00:17]} 35. Qg2 {[%clk 0:00:10]}  h6 {[%clk 0:00:10]} 36. g5 {[%clk 0:00:11]}  hxg5 {[%clk 0:00:09]} 37. Qa8+ {[%clk 0:00:11]}  Kh7 {[%clk 0:00:08]} 38. Qg2 {[%clk 0:00:10]}  g4 {[%clk 0:00:08]} 39. Be3 {[%clk 0:00:01]}  Bxb2 {[%clk 0:00:08]} 40. Qh2+ {[%clk 0:00:02]}  Kg6 {[%clk 0:00:07]} 41. Qf2 {[%clk 0:00:02]}  Be5 {[%clk 0:00:06]} 42. Kg2 {[%clk 0:00:02]}  Qe4+ {[%clk 0:00:04]} 43. Kg1 {[%clk 0:00:03]}  g3 {[%clk 0:00:05]} 44. Qe2 {[%clk 0:00:03]}  c5 {[%clk 0:00:03]} 45. Nd2 {[%clk 0:00:03]}  Qxc2 {[%clk 0:00:03]} 46. Qg4+ {[%clk 0:00:03]}  Kf7 {[%clk 0:00:03]} 47. Qd7+ {[%clk 0:00:04]}  Kg8 {[%clk 0:00:04]} 48. Qe8+ {[%clk 0:00:04]}  Kh7 {[%clk 0:00:04]} 49. Qh5+ {[%clk 0:00:04]}  Kg8 {[%clk 0:00:05]} 50. Qe8+ {[%clk 0:00:05]}  Kh7 {[%clk 0:00:05]} 51. Qh5+ {[%clk 0:00:06]}  Kg8 {[%clk 0:00:06]} 52. Qe8+ {[%clk 0:00:06]} 1/2-1/2


[Site "https://www.chess.com"]